Cogmind - Beta 13 X3 @@@ ROGUE MODE // 2024.02.18 @ 16:39:41 Player: Minty Result: Destroyed by G-34 Mercenary with Small Laser Performance ------------- Evolutions (1) 500 Regions Visited (2) 400 Robots Destroyed (50) 250 Value Destroyed (1083) 1083 Prototype IDs (9) 180 Alien Tech Used (0) 0 Bonus (106) 106 TOTAL SCORE: 2519 Bonus ------- High Alert Combat Kills 106 Cogmind --------- Core Integrity 0/400 Matter 255/300 Energy 12/100 System Corruption 5% Temperature Cool (42) Movement Hovering (56) Location -9/Materials Parts ------- > --- POWER (1) -------- (None) > --- PROPULSION (2) --- Airjet Airjet > --- UTILITY (4) ------ Small Storage Unit Hacking Suite Hacking Suite > --- WEAPON (2) ------- Improved Medium Laser > --- INVENTORY (8) ---- Wheel Airjet Weight Redist. System Propulsion Shielding Precision Beam Rifle Precision Beam Rifle Precision Beam Rifle Improved Datajack Peak State ------------ > --- POWER ------------ Ion Engine > --- PROPULSION ------- Airjet Airjet > --- UTILITY ---------- Improved Heat Sink Large Storage Unit Hacking Suite Hacking Suite > --- WEAPON ----------- Precision Beam Rifle Precision Beam Rifle > --- INVENTORY -------- Ion Engine Wheel Wheel Airjet Airjet Small Storage Unit Weight Redist. System Signal Interpreter Targeting Computer Targeting Computer Propulsion Shielding Precision Beam Rifle Precision Beam Rifle Assault Rifle Improved Datajack [Rating: 27] Favorites ----------- Power Ion Engine Engine Ion Engine Propulsion Light Treads Treads Light Treads Leg Aluminum Leg Hover Unit Airjet Utility Hacking Suite Device Improved Heat Sink Storage Large Storage Unit Hackware Hacking Suite Protection Propulsion Shielding Weapon Assault Rifle Energy Gun Precision Beam Rifle Energy Cannon Advanced Beam Cannon Ballistic Gun Assault Rifle Build | -11 -10 -9 ------- Run | Yrd Mat Mat Slots Evolved 2 | . . 2 Power . | . . . Propulsion . | . . . Utility 2 | . . 2 Weapon . | . . . Parts Attached 29 | . 10 19 Power 2 | . 1 1 Engine 2 | . 1 1 Core . | . . . Reactor . | . . . Propulsion 9 | . 5 4 Treads 3 | . 3 . Leg 2 | . 2 . Wheel . | . . . Hover 4 | . . 4 Flight . | . . . Utility 8 | . 2 6 Device 2 | . . 2 Storage 2 | . 1 1 Processor . | . . . Hackware 2 | . 1 1 Protection 2 | . . 2 Artifact . | . . . Weapon 10 | . 2 8 Energy Gun 6 | . . 6 Energy Cannon 1 | . . 1 Ballistic Gun 3 | . 2 1 Ballistic Cannon . | . . . Launcher . | . . . Special Weapon . | . . . Impact Weapon . | . . . Slashing Weapon . | . . . Piercing Weapon . | . . . Special Melee Weapon . | . . . Unidentified Prototypes 3 | . . 3 Parts Lost 3 | . . 3 Power . | . . . Propulsion 1 | . . 1 Utility . | . . . Weapon 2 | . . 2 Highest Loss Streak 2 | . . 2 To Critical Strikes 1 | . . 1 Average Slot Usage (%) 98 | . 97 98 Engine 12 | . 14 10 Treads 11 | . 13 8 Leg 8 | . 14 . Hover 5 | . . 13 Device 2 | . . 5 Storage 12 | . 14 11 Hackware 16 | . 11 22 Protection 2 | . . 5 Energy Gun 5 | . . 12 Ballistic Gun 19 | . 28 8 Naked Turns . | . . . Heaviest Build 30 | 13 29 30 Greatest Support 40 | 20 40 40 Greatest Overweight (x) 3 | . . 3 Average Overweight (x) . | . . . Largest Inventory Capacity 15 | . 15 15 Average Capacity 12 | . 11 13 Most Carried 15 | . 15 15 Average Carried 10 | . 9 12 Final Capacity 15 | 8 15 8 Final Carried 15 | 6 15 8 Class Distribution -------------------- 57% | Mutant 42% | Hacker-Mutant Dominant Class ---------------- Mutant | -10/Materials Hacker-Mutant | -9/Materials Resources | -11 -10 -9 ----------- Run | Yrd Mat Mat Matter Collected 846 | 200 369 277 Remotely . | . . . Salvage Created 1567 | . 594 973 Parts 105 | . 50 55 Haulers Intercepted 2 | . 1 1 Recyclers Shooed 2 | . 1 1 Parts Field Recycled . | . . . Retrieved Matter . | . . . Parts Self-Destructed . | . . . Prevented . | . . . Kills | -11 -10 -9 ------- Run | Yrd Mat Mat Combat Hostiles Destroyed 35 | . 12 23 Guns 33 | . 12 21 Classes Destroyed 11 | . 9 2 Worker 3 | . 1 2 Builder 1 | . . 1 Tunneler 1 | . 1 . Hauler 2 | . 1 1 Recycler 1 | . 1 . Mechanic 1 | . 1 . Operator 2 | . 2 . Watcher 4 | . 1 3 Swarmer 14 | . 6 8 Grunt 18 | . 6 12 Sentry 3 | . . 3 Best Kill Streak 13 | . 5 13 Combat Bots Only 6 | . 4 6 Max Kills in Single Turn 2 | . 1 2 Gunslinging 1 | . . 1 Exploded . | . . . Melee . | . . . Uniques/NPCs Destroyed . | . . . Combat | -11 -10 -9 -------- Run | Yrd Mat Mat Hostile Shots Fired 209 | . 63 146 Missed 69 | . 22 47 Damage Taken 1796 | . 464 1332 Core 466 | . 57 409 Absorbed by Shields . | . . . Redirected to Shielding 30 | . . 30 Core Remaining (%) 88 | 100 77 . Volleys Fired 122 | . 55 67 Largest 2 | . 2 2 Hottest 122 | . 40 122 Shots Fired 241 | . 110 131 Gun 241 | . 110 131 Cannon . | . . . Launcher . | . . . Special . | . . . Kinetic 146 | . 110 36 Thermal 95 | . . 95 Explosive . | . . . Electromagnetic . | . . . Robot Hit Streak 22 | . 9 22 Robot Miss Streak 3 | . 3 2 Penetration Max . | . . . Secondary Targets 6 | . 4 2 Max Gunslinging Chain 1 | . 1 1 Shots Hit Robots 164 | . 65 99 Core Hits 67 | . 29 38 Critical Kills . | . . . Critical Parts Destroyed . | . . . Critical Strikes 7 | . . 7 Burn 7 | . . 7 Melee Attacks . | . . . Impact . | . . . Slashing . | . . . Piercing . | . . . Sneak Attacks . | . . . Combat Hostiles . | . . . Follow-up Attacks . | . . . Damage Inflicted 2458 | . 884 1574 Guns 2446 | . 882 1564 Cannons . | . . . Explosions . | . . . Melee . | . . . Ramming 12 | . 2 10 Kinetic 1202 | . 882 320 Thermal 1244 | . . 1244 Explosive . | . . . Electromagnetic . | . . . Impact . | . . . Slashing . | . . . Piercing . | . . . Highest Corruption 5 | . . 5 Average Corruption 1 | . . 1 Corruption Purged . | . . . Corruption Blocked . | . . . Effects 2 | . . 2 Matter Fused 1 | . . 1 Energy Discharges 1 | . . 1 Overload Shots . | . . . Overflow Damage . | . . . Projectiles . | . . . Explosions . | . . . Melee . | . . . Knockbacks 1 | . . 1 Impact 1 | . . 1 Kinetic . | . . . Secondary . | . . . Self-Inflicted Damage . | . . . Shots . | . . . Rammed 3 | . 1 2 Targets Rammed 3 | . 1 2 Kicked . | . . . Crushed . | . . . Highest Temperature 255 | . 8 255 Average Temperature 58 | . 2 63 Received Heat Transfer 705 | . 201 504 Effects 2 | . . 2 Interference 2 | . . 2 Siege Activations . | . . . Robots Corrupted . | . . . Combat Hostiles . | . . . Parts Fried . | . . . Impact Corruptions . | . . . Robots Melted 2 | . . 2 Combat Hostiles 2 | . . 2 Parts Melted 18 | . . 18 Heat Transferred 3202 | . . 3202 Parts Sabotaged . | . . . Parts Stolen . | . . . Parts Stripped . | . . . Power Chain Reactions . | . . . Alert | -11 -10 -9 ------- Run | Yrd Mat Mat Peak Influence 627 | . 355 627 Initial 94 | . . 94 Average 243 | . 154 362 Maximum Alert Level 2 | . 1 2 Low Security (%) 46 | . 66 20 Level 1 34 | . 33 36 Level 2 18 | . . 43 Level 3 . | . . . Level 4 . | . . . Level 5 . | . . . High Security . | . . . Max Security . | . . . Squads Dispatched 8 | . 4 4 Investigation 4 | . 2 2 Extermination . | . . . Reinforcement 2 | . 2 . Assault 2 | . . 2 Garrison . | . . . Intercept . | . . . Searches Triggered . | . . . Construction Impeded . | . . . Haulers Reinforced . | . . . Active Scanning Responses . | . . . Cargo Convoy Interrupts . | . . . Stealth | -11 -10 -9 --------- Run | Yrd Mat Mat Distress Signals 9 | . 3 6 Communications Jammed . | . . . Distress Signals . | . . . Times Spotted 64 | . 22 42 Peak Tracking Total 11 | . 5 11 Tactical Retreats 2 | . 1 1 Traps | -11 -10 -9 ------- Run | Yrd Mat Mat Traps Triggered 1 | . 1 . Indirectly . | . . . Trap Hack Attempts . | . . . Triggered . | . . . Disarmed . | . . . Reprogrammed . | . . . Reused . | . . . Traps Extracted . | . . . Installed . | . . . Triggered . | . . . Machines | -11 -10 -9 ---------- Run | Yrd Mat Mat Machines Disabled 1 | . . 1 Max in Single Turn 1 | . . 1 Machines Repaired . | . . . Machines Dismantled . | . . . Machines Sabotaged . | . . . Overloaded Fab Kills . | . . . Hacking | -11 -10 -9 --------- Run | Yrd Mat Mat Machines Accessed 7 | . 4 3 Terminals 6 | . 3 3 Fabricators . | . . . Repair Stations . | . . . Recycling Units 1 | . 1 . Scanalyzers . | . . . Garrison Access . | . . . Total Hacks 29 | . 17 12 Successful 15 | . 9 6 Failed 13 | . 7 6 Catastrophic 1 | . . 1 Database Lockouts 1 | . 1 . Manual 19 | . 10 9 Terminals 23 | . 11 12 Fabricators . | . . . Repair Stations . | . . . Recycling Units 6 | . 6 . Scanalyzers . | . . . Garrison Access . | . . . Terminal Hacks 7 | . 4 3 Prototype ID Bank 3 | . 2 1 Recycling Unit Index 1 | . 1 . Alert Level 1 | . . 1 Dispatch Records 1 | . . 1 Recall Reinforcements 1 | . 1 . Fabricator Hacks . | . . . Repair Station Hacks . | . . . Recycling Unit Hacks 3 | . 3 . Process 1 | . 1 . Report Inventory 1 | . 1 . Retrieve Matter 1 | . 1 . Scanalyzer . | . . . Garrison Access Hacks . | . . . Unauthorized Hacks 5 | . 2 3 Terminals 5 | . 2 3 Track 1 | . . 1 Botnet 4 | . 2 2 Fabricators . | . . . Repair Stations . | . . . Recycling Units . | . . . Scanalyzers . | . . . Garrison Access . | . . . Data Cores Recovered . | . . . Used . | . . . Hacking Detections 7 | . 4 3 Full Trace Events 4 | . 2 2 Feedback Events 1 | . . 1 Corruption 1 | . . 1 Feedback Blocked . | . . . Robot Schematics Acquired . | . . . Robots Built . | . . . Authchips . | . . . Time . | . . . Total Robot Build Rating . | . . . Part Schematics Acquired . | . . . Parts Built . | . . . Authchips . | . . . Time . | . . . Total Part Build Rating . | . . . Parts Repaired . | . . . Time . | . . . Parts Recycled . | . . . Recycled Matter 48 | . 48 . Retrieved Matter 48 | . 48 . Retrieved Components . | . . . Parts Scanalyzed . | . . . Part Schematics Acquired . | . . . Parts Damaged . | . . . Bothacking | -11 -10 -9 ------------ Run | Yrd Mat Mat Used RIF Installer . | . . . Robots Hacked . | . . . Non-combat . | . . . Combat . | . . . Robot Hacks Applied . | . . . Relay Couplers Released . | . . . Fabnet Peak Effective % . | . . . Robots Rewired . | . . . Allies Hacked . | . . . Hacks Repelled . | . . . Allies | -11 -10 -9 -------- Run | Yrd Mat Mat Total Allies . | . . . Largest Group . | . . . Highest-Rated Group . | . . . Highest-Rated Ally . | . . . Total Orders . | . . . Ally Attacks . | . . . Total Damage . | . . . Kills . | . . . Allies Corrupted . | . . . Allies Melted . | . . . Intel | -11 -10 -9 ------- Run | Yrd Mat Mat Robot Analysis Total . | . . . Derelict Logs Recovered . | . . . Drone Launches . | . . . Drone Recoveries . | . . . Exploration | -11 -10 -9 ------------- Run | Yrd Mat Mat Turns Passed 1204 | . 689 515 Spaces Moved 591 | 1 352 238 Core . | . . . Treads 240 | . 163 77 Legs 190 | 1 189 . Wheels . | . . . Hover 161 | . . 161 Flight . | . . . Fastest Speed 56 | 120 120 56 Average Speed 125 | 120 138 105 Slowest Speed 240 | 120 160 240 Overloaded Moves . | . . . Propulsion Burnouts . | . . . Robots Hopped . | . . . Cave-ins Triggered . | . . . Exploration Rate (%) 29 | 2 55 32 Regions Visited 2 Branch Regions . Pre-discovered Areas . | . . . Known Exits Taken . | . . . Unknown Exits Taken 2 | 1 1 . Scrap Searched . | . . . Spaces Dug . | . . . Terrain Destroyed . | . . . Melee . | . . . Projectile . | . . . AOE . | . . . Terrain Rammed . | . . . Walls Destroyed . | . . . Machines Disabled . | . . . Actions | -11 -10 -9 --------- Run | Yrd Mat Mat Total 821 | . 447 374 Wait 29 | . 9 20 Move 589 | . 351 238 Hop . | . . . Pick Up 23 | . 12 11 Fast Attach 8 | . 1 7 Attach 5 | . 1 4 Detach 4 | . 1 3 Swap 16 | . 8 8 Drop 22 | . 8 14 Fire 122 | . 55 67 Melee . | . . . Ram . | . . . Kick . | . . . Crush 3 | . 1 2 Escape Stasis . | . . . Rewire . | . . . Trap . | . . . Miscellaneous . | . . . Route ------- -11/Scrapyard -10/Materials -9/Materials History --------- Turn | Location | Event 1 | -11/Scrapyard | Discovered new exit (range 0) 1 | -11/Scrapyard | Entered Materials 308 | -10/Materials | Build established: Mutant 416 | -10/Materials | Discovered new exit (range 15) 549 | -10/Materials | Central database locked down 690 | -10/Materials | Entered another Materials area 690 | -9/Materials | Evolved 2 slots: Utility x2 999 | -9/Materials | Build established: Hacker-Mutant 1090 | -9/Materials | First assault squad dispatched 1193 | -9/Materials | Core integrity fell below 50% 1204 | -9/Materials | Core integrity fell below 20% 1205 | -9/Materials | Destroyed by G-34 Mercenary with Small Laser Last Messages --------------- 01184_ Switching to secondary target: L-31 Rogue. 01190_ Airjet destroyed. 01191_ C-30 ARC bursts open, deploying its payload. 01191_ G-47 Trooper unfolds itself. 01191_ L-31 Rogue unfolds itself. 01191_ G-34 Mercenary unfolds itself. 01191_ I-25 Savior unfolds itself. 01194_ Acquired Prototype Energy Cannon. 01194_ Identified Adv. Beam Cannon. 01194_ Faulty integration triggers energy drain (-21). 01197_ Ion Engine severed. 01197_ Dropped Faulty Adv. Beam Cannon. 01198_ Acquired Prototype Energy Gun. 01198_ Identified Imp. Medium Laser. 01198_ Faulty integration triggers system corruption (+4). 01199_ Prc. Beam Rifle destroyed. 01199_ Dropped Faulty Imp. Medium Laser. 01200_ Acquired Imp. Medium Laser. 01204_ Critical hit (Burn: +37). 01205_ Imp. Heat Sink severed. Map ----- +----------------------------------------------------+ | ???????? #?????????# #??????????????? | | ???????? #?????????# #??????????????? | | ???????? #?????????# #??????????????? | | ???????? #?????????# #??????????????? | | ???????# #?????????# #??????????????? | | ???????# #????????## ##?????????????? | | ???????# ?????????# #?????????????? | | ???????# ##+####### #?????????????? | | ???????# #####/#???????? | | ???????# T +???? | | ???????#=####/###### ##### ##????? | | ????####%# ! = ## #?????#######+# | | ????# ![+ * [ #### #######+# | | ????# #### #??# ## # | | ????#=#??# * #??# ## # """ | | ??###%#### #??# += + """ | | ??# ## #??# ##= # """ | | ??# * ## #??# ### # """ | | ??# =% ## #??# #?# # | | ??# ## #??# #?######## | | ??# ###########??# #????????# """ | | ??## ###########???# #????????# """ | | ???# # #???#+#????????# """ | | ???# + gg #??????????????# """ | | ???# # """ g #????????????### | | ???# #%""" gi[@#????????????#"" == * | | ???# # """ ]ll#????????????#"" """= | | ???# # g *[]#????????????#"T """ | | ???# # Yi ##???????????#"" """ | | ???# # g % #???????????#"" """ | | ???# ############???????????### | | ???# ##?????????????????????????# | | ???# ???????????????????????????# """ | | ???# ????????????????????????? """ | | ??? ?????????????????????? """ | | ??? ????????????????????? """ | | ??? ?????????????????????+####### | | ????????????????????????????????# | | ????????????????????????????????# """ | | ????????????????????????????????# """ | | ????????????????????????????????# """ | | ????????????????????????????????# """ | | ????????????????????????????????# | | ????????????????????????????????# | | ????????????????????????????????# | | ????????????????????????????????? | | ??????????????????????????????????? | | ?????????????????????????????????? | | ??????????????????????????????????? | | ??????????????????????????????????????#+# | +----------------------------------------------------+ Best States ------------- Heat Dissipation 42 Energy Generation 10 Energy Capacity 250 Matter Stores 300 Matter Capacity 300 Sight Range 16 Terrain Scan Density 10 Additional Mass Support 6 Propulsion Shielding 33 Evasion (%) 55 Recoil Reduction 2 Offensive Hacking 20 Item Schematics ----------------- None Robot Schematics ------------------ None Fabricated ------------ Nothing Alien Tech Used ----------------- None Achievements -------------- None Challenges ------------ None Game ------ Seed SmallLightAutogun Manual? 0 Play Time 00:11:48 Cumulative 665.8 hours Start 2024.02.18 @ 16:31:47 End 2024.02.18 @ 16:39:41 Sessions 1 Manual Loads 0 Difficulty Rogue Special Mode None Game No. 666 Rogue 391 Adventurer 123 Explorer 152 Win Type - Total 25 Types 19/0/4/1/0/0/0/1/0 Lore% 80 Gallery% 91 Achievement% 76 Wizard Run 0 Options --------- Layout 0 ASCII 0 Keyboard 1 Movement Numpad Keybinds 0 Fullscreen 2 Font 18/SmallcapsGlow Map View 76x50 Zoom Use 5% Tactical HUD 1 Map Filters NONE Filters NONE Steam 1 RUN: 7463cd9b-11b2-4683-81ef-6fd48e3ac52b